lending/lending_fUSD_20240507
["ID","MTS","AMOUNT","RATE_DAILY","PERIOD"]
[326545509,1715100714187,-1216.6,0.00024931,2]
[326545510,1715100714199,-500.0,0.00024931,2]
[326545511,1715100714210,-500.0,0.00024931,2]
[326545512,1715100714222,-2727.92,0.00024931,2]
[326545513,1715100714235,-500.0,0.00024931,2]
[326545514,1715100714249,-391.86417887,0.00024931,2]
[326545515,1715100714262,-500.0,0.00024931,2]
[326545516,1715100714290,-970.03,0.00024931,2]
[326545517,1715100714331,-500.0,0.00024931,2]
[326545518,1715100714389,-4787.73,0.00024931,2]
[326545519,1715100714400,-500.0,0.00024931,2]
[326545520,1715100714411,-1475.13,0.00024931,2]
[326545521,1715100714429,-558.06,0.00024931,2]
[326545522,1715100714443,-679.18,0.00024931,2]
[326545523,1715100714463,-621.13,0.00024931,2]
[326545524,1715100714525,-500.0,0.00024931,2]
[326545525,1715100714543,-506.86885789,0.00024931,2]
[326545526,1715100714554,-500.0,0.00024931,2]
[326545527,1715100714589,-500.0,0.00024931,2]
[326545528,1715100714600,-500.0,0.00024931,2]
[326545529,1715100714611,-815.1,0.00024931,2]
[326545530,1715100714624,-500.0,0.00024931,2]
[326545531,1715100714635,-2922.49,0.00024931,2]
[326545532,1715100714665,-506.09869259,0.00024931,2]
[326545533,1715100714682,-500.0,0.00024931,2]
[326545534,1715100714693,-623.66,0.00024931,2]
[326545535,1715100714710,-1366.62,0.00024931,2]
[326545536,1715100714722,-788.87,0.00024931,2]
[326545537,1715100714732,-1485.27,0.00024931,2]
[326545538,1715100714756,-1075.12,0.00024931,2]
[326545539,1715100714772,-506.46616002,0.00024931,2]
[326545540,1715100714783,-500.0,0.00024931,2]
[326545541,1715100714792,-500.0,0.00024931,2]
[326545542,1715100714802,-500.0,0.00024931,2]
[326545543,1715100714821,-783.09,0.00024931,2]
[326545544,1715100714844,-46372.41,0.00024931,2]
[326545545,1715100714860,-3496.26,0.00024931,2]
[326545546,1715100714893,-500.0,0.00024931,2]
[326545547,1715100714906,-500.0,0.00024931,2]
[326545548,1715100714917,-500.0,0.00024931,2]
[326545549,1715100714929,-559.75,0.00024931,2]
[326545550,1715100714941,-500.0,0.00024931,2]
[326545551,1715100714952,-6151.41,0.00024931,2]
[326545552,1715100714976,-2455.11,0.00024931,2]
[326545553,1715100714991,-500.0,0.00024931,2]
[326545554,1715100715005,-500.0,0.00024931,2]
[326545555,1715100715028,-1749.69,0.00024931,2]
[326545556,1715100715042,-1371.86,0.00024931,2]
[326545557,1715100715053,-500.0,0.00024931,2]
[326545558,1715100715091,-3497.73,0.00024931,2]
[326545559,1715100715103,-500.0,0.00024931,2]
[326545560,1715100715114,-806.41,0.00024931,2]
[326545561,1715100715126,-500.0,0.00024931,2]
[326545562,1715100715138,-500.0,0.00024931,2]
[326545563,1715100715153,-948.1,0.00024931,2]
[326545564,1715100715178,-6192.67,0.00024931,2]
[326545565,1715100715189,-863.67,0.00024931,2]
[326545566,1715100715206,-500.0,0.00024931,2]
[326545567,1715100715217,-3854.9,0.00024931,2]
[326545568,1715100715228,-907.32,0.00024931,2]
[326545569,1715100715245,-500.0,0.00024931,2]
[326545570,1715100715260,-501.38,0.00024931,2]
[326545571,1715100715272,-500.0,0.00024931,2]
[326545572,1715100715296,-8947.76,0.00024931,2]
[326545573,1715100715309,-500.0,0.00024931,2]
[326545574,1715100715322,-508.22,0.00024931,2]
[326545575,1715100715334,-500.0,0.00024931,2]
[326545576,1715100715344,-5335.72,0.00024931,2]
[326545577,1715100715356,-1503.08,0.00024931,2]
[326545578,1715100715367,-3719.33,0.00024931,2]
[326545579,1715100715378,-500.0,0.00024931,2]
[326545580,1715100715390,-500.0,0.00024931,2]
[326545581,1715100715403,-1230.21,0.00024931,2]
[326545582,1715100715460,-1664.73,0.00024931,2]
[326545583,1715100715484,-3050.31,0.00024931,2]
[326545584,1715100715501,-723.54,0.00024931,2]
[326545585,1715100715524,-500.0,0.00024931,2]
[326545586,1715100715535,-399.61,0.00024931,2]
[326545587,1715100715545,-14262.11,0.00024931,2]
[326545588,1715100715558,-3400.94,0.00024931,2]
[326545589,1715100715574,-5916.29,0.00024931,2]
[326545590,1715100715594,-500.0,0.00024931,2]
[326545591,1715100715605,-500.0,0.00024931,2]
[326545592,1715100715615,-500.0,0.00024931,2]
[326545593,1715100715625,-505.50763555,0.00024931,2]
[326545594,1715100715648,-742.15,0.00024931,2]
[326545595,1715100715662,-500.0,0.00024931,2]
[326545596,1715100715681,-849.65,0.00024931,2]
[326545597,1715100715696,-581.36421109,0.00024931,2]
[326545598,1715100715709,-3107.68,0.00024931,2]
[326545599,1715100715719,-500.0,0.00024931,2]
[326545600,1715100715729,-3276.03,0.00024931,2]
[326545601,1715100715740,-553.72,0.00024931,2]
[326545602,1715100715751,-567.58,0.00024931,2]
[326545603,1715100715761,-3453.67,0.00024931,2]
[326545604,1715100715771,-654.05,0.00024931,2]
[326545605,1715100715783,-500.0,0.00024931,2]
[326545606,1715100715800,-766.13,0.00024931,2]
[326545607,1715100715812,-500.0,0.00024931,2]
[326545608,1715100715822,-6145.48,0.00024931,2]
[326545609,1715100715834,-1426.13,0.00024931,2]
[326545610,1715100715845,-1020.1,0.00024931,2]
[326545611,1715100715856,-21255.09,0.00024931,2]
[326545612,1715100715869,-500.0,0.00024931,2]
[326545613,1715100715890,-500.0,0.00024931,2]
[326545614,1715100715919,-552.98,0.00024931,2]
[326545615,1715100715930,-500.0,0.00024931,2]
[326545616,1715100715940,-500.0,0.00024931,2]
[326545617,1715100715953,-10028.3,0.00024931,2]
[326545618,1715100715963,-1648.62,0.00024931,2]
[326545619,1715100715977,-1029.15,0.00024931,2]
[326545620,1715100715994,-1191.0,0.00024931,2]
[326545621,1715100716018,-500.0,0.00024931,2]
[326545622,1715100716036,-500.0,0.00024931,2]
[326545623,1715100716047,-500.0,0.00024931,2]
[326545624,1715100716061,-2857.63,0.00024931,2]
[326545625,1715100716095,-505.67889475,0.00024931,2]
[326545626,1715100716107,-500.0,0.00024931,2]
[326545627,1715100716118,-500.0,0.00024931,2]
[326545628,1715100716130,-1844.38,0.00024931,2]
[326545629,1715100716146,-658.88,0.00024931,2]
[326545630,1715100716160,-2162.51,0.00024931,2]
[326545631,1715100716190,-630.52,0.00024931,2]
[326545632,1715100716220,-5581.37,0.00024931,2]
[326545633,1715100716231,-892.7,0.00024931,2]
[326545634,1715100716241,-500.0,0.00024931,2]
[326545635,1715100716255,-2702.27,0.00024931,2]
[326545636,1715100716266,-1465.18,0.00024931,2]
[326545637,1715100716302,-500.0,0.00024931,2]
[326545638,1715100716320,-500.0,0.00024931,2]
[326545639,1715100716344,-595.98,0.00024931,2]
[326545640,1715100716368,-2382.14,0.00024931,2]
[326545641,1715100716379,-9586.67,0.00024931,2]
[326545642,1715100716390,-500.0,0.00024931,2]
[326545643,1715100716404,-500.0,0.00024931,2]
[326545644,1715100716419,-1783.88,0.00024931,2]
[326545645,1715100716443,-500.0,0.00024931,2]
[326545646,1715100716454,-1228.8,0.00024931,2]
[326545647,1715100716470,-504.68842216,0.00024931,2]
[326545648,1715100716487,-1315.3,0.00024931,2]
[326545649,1715100716504,-500.0,0.00024931,2]
[326545650,1715100716514,-2838.38,0.00024931,2]
[326545651,1715100716533,-857.45,0.00024931,2]
[326545652,1715100716543,-2516.16,0.00024931,2]
[326545653,1715100716554,-500.0,0.00024931,2]
[326545654,1715100716564,-590.74,0.00024931,2]
[326545655,1715100716605,-301.92408637,0.00024931,2]
[326545656,1715100716615,-500.0,0.00024931,2]
[326545657,1715100716627,-2248.38,0.00024931,2]
[326545658,1715100716638,-2796.49,0.00024931,2]
[326545659,1715100716650,-759.73,0.00024931,2]
[326545660,1715100716664,-500.0,0.00024931,2]
[326545661,1715100716674,-883.15,0.00024931,2]
[326545662,1715100716684,-1564.15,0.00024931,2]
[326545663,1715100716694,-1226.26,0.00024931,2]
[326545664,1715100716704,-500.0,0.00024931,2]
[326545665,1715100716714,-3884.79,0.00024931,2]
[326545666,1715100716741,-554.79,0.00024931,2]
[326545667,1715100716755,-536.92,0.00024931,2]
[326545668,1715100716772,-500.0,0.00024931,2]
[326545669,1715100716788,-4991.7,0.00024931,2]
[326545670,1715100716806,-9672.4,0.00024931,2]
[326545671,1715100716817,-4438.12,0.00024931,2]
[326545672,1715100716834,-500.0,0.00024931,2]
[326545673,1715100716855,-500.0,0.00024931,2]
[326545674,1715100716865,-500.0,0.00024931,2]
[326545675,1715100716883,-627.83,0.00024931,2]
[326545676,1715100716901,-960.52,0.00024931,2]
[326545677,1715100716912,-4573.52,0.00024931,2]
[326545678,1715100716923,-500.0,0.00024931,2]
[326545679,1715100716967,-3690.9,0.00024931,2]
[326545680,1715100716978,-500.0,0.00024931,2]
[326545681,1715100716990,-623.68,0.00024931,2]
[326545682,1715100717000,-500.0,0.00024931,2]
[326545683,1715100717011,-735.18,0.00024931,2]
[326545684,1715100717021,-500.0,0.00024931,2]
[326545685,1715100717033,-500.0,0.00024931,2]
[326545686,1715100717043,-513.46,0.00024931,2]
[326545687,1715100717053,-1366.51,0.00024931,2]
[326545688,1715100717063,-708.49,0.00024931,2]
[326545689,1715100717100,-500.0,0.00024931,2]
[326545690,1715100717112,-1911.81,0.00024931,2]
[326545691,1715100717123,-1867.05,0.00024931,2]
[326545692,1715100717146,-618.54283442,0.00024931,2]
[326545693,1715100717161,-500.0,0.00024931,2]
[326545694,1715100717180,-1448.39,0.00024931,2]
[326545695,1715100717191,-1794.17,0.00024931,2]
[326545696,1715100717201,-500.0,0.00024931,2]
[326545697,1715100717220,-500.0,0.00024931,2]
[326545698,1715100717238,-500.0,0.00024931,2]
[326545699,1715100717256,-711.31,0.00024931,2]
[326545700,1715100717268,-3155.93,0.00024931,2]
[326545701,1715100717278,-504.07749615,0.00024931,2]
[326545702,1715100717290,-386.76980024,0.00024931,2]
[326545703,1715100717300,-500.0,0.00024931,2]
[326545704,1715100717310,-500.0,0.00024931,2]
[326545705,1715100717322,-8727.16,0.00024931,2]
[326545706,1715100717514,-3270.24,0.00024931,2]
[326545707,1715100717525,-1613.73,0.00024931,2]
[326545708,1715100717535,-500.0,0.00024931,2]
[326545709,1715100717546,-2251.43,0.00024931,2]
[326545710,1715100717556,-500.0,0.00024931,2]
[326545711,1715100717566,-507.0342122,0.00024931,2]
[326545712,1715100717586,-1922.71,0.00024931,2]
[326545713,1715100717598,-510.31,0.00024931,2]
[326545714,1715100717623,-2514.52,0.00024931,2]
[326545715,1715100717639,-500.0,0.00024931,2]
[326545716,1715100717682,-688.77,0.00024931,2]
[326545717,1715100717692,-500.0,0.00024931,2]
[326545718,1715100717707,-259.16810056,0.00024931,2]
[326545719,1715100717719,-500.0,0.00024931,2]
[326545720,1715100717730,-766.66,0.00024931,2]
[326545721,1715100717743,-4244.15,0.00024931,2]
[326545722,1715100717755,-818.11,0.00024931,2]
[326545723,1715100717765,-500.0,0.00024931,2]
[326545724,1715100717779,-500.0,0.00024931,2]
[326545725,1715100717801,-1691.89,0.00024931,2]
[326545726,1715100717816,-844.84,0.00024931,2]
[326545727,1715100717828,-501.00611434,0.00024931,2]
[326545728,1715100717839,-506.53460285,0.00024931,2]
[326545729,1715100717872,-500.0,0.00024931,2]
[326545730,1715100717882,-500.0,0.00024931,2]
[326545731,1715100717899,-500.0,0.00024931,2]
[326545732,1715100717911,-793.23,0.00024931,2]
[326545733,1715100717931,-500.0,0.00024931,2]
[326545734,1715100717949,-891.61,0.00024931,2]
[326545735,1715100717959,-1315.31,0.00024931,2]
[326545736,1715100717978,-579.56,0.00024931,2]
[326545737,1715100718006,-1113.24,0.00024931,2]
[326545738,1715100718019,-805.88,0.00024931,2]
[326545739,1715100718035,-510.45286698,0.00024931,2]
[326545740,1715100718052,-1888.59,0.00024931,2]
[326545741,1715100718064,-3463.82,0.00024931,2]
[326545742,1715100718081,-33618.46,0.00024931,2]
[326545743,1715100718092,-990.25,0.00024931,2]
[326545744,1715100718108,-4681.05,0.00024931,2]
[326545745,1715100718119,-3393.58,0.00024931,2]
[326545746,1715100718131,-772.07,0.00024931,2]
[326545747,1715100718141,-500.0,0.00024931,2]
[326545748,1715100718164,-500.0,0.00024931,2]
[326545749,1715100718192,-506.09707193,0.00024931,2]
[326545750,1715100718203,-752.83,0.00024931,2]
[326545751,1715100718216,-500.0,0.00024931,2]
[326545752,1715100718238,-500.0,0.00024931,2]
[326545753,1715100718253,-2747.91,0.00024931,2]
[326545754,1715100718264,-500.0,0.00024931,2]
[326545755,1715100718282,-642.95043471,0.00024931,2]
[326545756,1715100718296,-797.97,0.00024931,2]
[326545757,1715100718313,-16505.91,0.00024931,2]
[326545758,1715100718329,-505.68480763,0.00024931,2]
[326545759,1715100718344,-729.09,0.00024931,2]
[326545760,1715100718358,-506.52894811,0.00024931,2]
[326545761,1715100718373,-505.75286909,0.00024931,2]
[326545762,1715100718387,-500.0,0.00024931,2]
[326545763,1715100718398,-500.0,0.00024931,2]
[326545764,1715100718410,-1041.85,0.00024931,2]
[326545765,1715100718431,-500.0,0.00024931,2]
[326545766,1715100718455,-506.38036779,0.00024931,2]
[326545767,1715100718468,-2512.72,0.00024931,2]
[326545768,1715100718479,-500.0,0.00024931,2]
[326545769,1715100718490,-2771.26,0.00024931,2]
[326545770,1715100718505,-503.45099203,0.00024931,2]
[326545771,1715100718515,-2106.13,0.00024931,2]
[326545772,1715100718527,-2072.9849902,0.00024931,2]
[326545773,1715100719222,-1350.5050098,0.00024931,2]
[326545774,1715100719264,-1424.95,0.00024931,2]
[326545775,1715100719274,-3378.37,0.00024931,2]
[326545776,1715100719288,-507.71875651,0.00024931,2]
[326545777,1715100719326,-500.0,0.00024931,2]
[326545778,1715100719363,-500.0,0.00024931,2]
[326545779,1715100719384,-500.0,0.00024931,2]
[326545780,1715100719394,-500.0,0.00024931,2]
[326545781,1715100719407,-500.0,0.00024931,2]
[326545782,1715100719421,-2218.45,0.00024931,2]
[326545783,1715100719434,-3243.41,0.00024931,2]
[326545784,1715100719461,-551.15,0.00024931,2]
[326545785,1715100719471,-500.0,0.00024931,2]
[326545786,1715100719482,-651.16,0.00024931,2]
[326545787,1715100719502,-507.1251985,0.00024931,2]
[326545788,1715100719512,-7836.35,0.00024931,2]
[326545789,1715100719525,-4353.47,0.00024931,2]
[326545790,1715100719537,-870.97,0.00024931,2]
[326545791,1715100719547,-8683.47,0.00024931,2]
[326545792,1715100719558,-3063.67,0.00024931,2]
[326545793,1715100719567,-2590.75,0.00024931,2]
[326545794,1715100719594,-3171.55,0.00024931,2]
[326545795,1715100719614,-2148.67,0.00024931,2]
[326545796,1715100719626,-10725.39,0.00024931,2]
[326545797,1715100719637,-3816.34,0.00024931,2]
[326545798,1715100719660,-2843.52,0.00024931,2]
[326545799,1715100719675,-4008.86,0.00024931,2]
[326545800,1715100719685,-2341.57,0.00024931,2]
[326545801,1715100719701,-3493.95,0.00024931,2]
[326545802,1715100719723,-5211.98,0.00024931,2]
[326545803,1715100719742,-6071.3,0.00024931,2]
[326545804,1715100719752,-505.34497813,0.00024931,2]
[326545805,1715100719762,-6296.84,0.00024931,2]
[326545806,1715100719772,-500.0,0.00024931,2]
[326545807,1715100719783,-4238.95,0.00024931,2]
[326545808,1715100719793,-1472.49,0.00024931,2]
[326545809,1715100719805,-2446.71,0.00024931,2]
[326545810,1715100719815,-1257.29,0.00024931,2]
[326545811,1715100719825,-500.0,0.00024932,2]
[326545812,1715100719835,-500.0,0.00024941,2]
[326545813,1715100719851,-500.0,0.0002495,2]
[326545814,1715100719865,-11602.39975101,0.00024953,2]
[326545815,1715100719879,-500.0,0.00024959,2]
[326545816,1715100719889,-500.0,0.00024967,2]
[326545817,1715100719900,-500.0,0.00024976,2]
[326545818,1715100719914,-2745.99228471,0.00024978,9]
[326545819,1715100719925,-500.0,0.00024985,2]
[326545820,1715100719942,-31582.93065267,0.0002499,2]
[326545821,1715100719955,-22911.60730498,0.00024991,2]
[326545822,1715100719973,-500.0,0.00024994,2]
[326545823,1715100719990,-460.41551454,0.00024999,2]
[326545824,1715100720001,-212.9822371,0.00025,2]
[326545825,1715100720012,-2218.57256714,0.00025,2]
[326545826,1715100720024,-155.0,0.00025,2]
[326545827,1715100720040,-471.60362987,0.00025,2]
[326545828,1715100720051,-20000.0,0.00025,2]
[326545829,1715100720064,-7127.88528015,0.00025,2]
[326545830,1715100720082,-657.2955815,0.00025,26]
[326545831,1715100720093,-32847.2568,0.00025,2]
[326545832,1715100720104,-35624.8569,0.00025,2]
[326545833,1715100720132,-500.0,0.00025,2]
[326545834,1715100720147,-160.0,0.00025,2]
[326545835,1715100720166,-162.9547338,0.00025,2]
[326545836,1715100720183,-1000.0,0.00025,2]
[326545837,1715100720193,-170.3148227,0.00025,2]
[326545838,1715100720209,-708.0,0.00025,2]
[326545839,1715100720237,-27567.02454595,0.00025,7]
[326545840,1715100720253,-743.67256387,0.00025,2]
[326545841,1715100720279,-200000.0,0.00025,30]
[326545842,1715100720291,-616.32874358,0.00025,30]
[326545843,1715100720303,-4949.10571573,0.00025,2]
[326545844,1715100720323,-694.0,0.00025,3]
[326545845,1715100720348,-2011.93716249,0.00025,2]
[326545846,1715100720367,-1027.48119392,0.00025,2]
[326545847,1715100720378,-200.47629416,0.00025,30]
[326545848,1715100720390,-218.69807375,0.00025,30]
[326545849,1715100720405,-250.0,0.00025,30]
[326545850,1715100720415,-250.52331368,0.00025,30]
[326545851,1715100720444,-167.74860337,0.00025,2]
[326545852,1715100720455,-1037.70360246,0.00025,2]
[326545853,1715100720469,-1042.02397427,0.00025,2]
[326545854,1715100720486,-443.9629901,0.00025,2]
[326545855,1715100720533,-37426.70421522,0.00025,2]
[326545856,1715100720548,-16847.2242985,0.00025,2]
[326545857,1715100720561,-6909.5873593,0.00025,2]
[326545858,1715100720573,-933.29171746,0.00025,2]
[326545859,1715100720595,-1274.10191,0.00025,3]
[326545860,1715100720606,-515.0,0.00025,13]
[326545861,1715100720631,-1852.58063914,0.00025,2]
[326545862,1715100720680,-550.26,0.00025,2]
[326545863,1715100720691,-500.0,0.00025,2]
[326545864,1715100720703,-200.0,0.00025,2]
[326545865,1715100720728,-2000.0,0.00025,2]
[326545866,1715100720739,-547.73087551,0.00025,2]
[326545867,1715100720755,-298.53572696,0.00025,2]
[326545868,1715100720766,-293.61360366,0.00025,2]
[326545869,1715100720779,-2000.0,0.00025,2]
[326545870,1715100720793,-200.0,0.00025,2]
[326545871,1715100720808,-200.0,0.00025,2]
[326545872,1715100720819,-1001.58,0.00025,2]
[326545873,1715100720830,-500.0,0.00025003,2]
[326545874,1715100720842,-335.61056735,0.00025008,7]
[326545875,1715100720853,-155.0,0.00025008,2]
[326545876,1715100720865,-500.0,0.00025011,2]
[326545877,1715100720884,-500.0,0.0002502,2]
[326545878,1715100720894,-155.95989435,0.00025027,2]
[326545879,1715100720935,-500.0,0.00025029,2]
[326545880,1715100720954,-500.0,0.00025038,2]
[326545881,1715100720967,-500.0,0.00025047,2]
[326545882,1715100720978,-500.0,0.00025055,2]
[326545883,1715100720993,-500.0,0.00025064,2]
[326545884,1715100721015,-500.0,0.00025073,2]
[326545885,1715100721027,-500.0,0.00025082,2]
[326545886,1715100721039,-4850.69804327,0.00025088,2]
[326545887,1715100721051,-500.0,0.00025091,2]
[326545888,1715100721063,-500.0,0.00025099,2]
[326545889,1715100721080,-1482.54,0.000251,2]
[326545890,1715100721092,-1446.8,0.000251,2]
[326545891,1715100721103,-153.837712,0.00025104,2]
[326545892,1715100721115,-195.87309804,0.00025105,2]
[326545893,1715100721127,-24092.71173128,0.00025105,2]
[326545894,1715100721157,-500.0,0.00025108,2]
[326545895,1715100721168,-500.0,0.00025117,2]
[326545896,1715100721431,-150.0,0.00025118,4]
[326545897,1715100721445,-500.0,0.00025126,2]
[326545898,1715100721456,-500.0,0.00025135,2]
[326545899,1715100721466,-500.0,0.00025143,2]
[326545900,1715100721482,-157.050711,0.00025148,4]
[326545901,1715100721496,-500.0,0.00025152,2]
[326545902,1715100721510,-500.0,0.00025161,2]
[326545903,1715100721520,-152.61286752,0.00025163,2]
[326545904,1715100721530,-500.0,0.0002517,2]
[326545905,1715100721553,-400.0,0.0002517,2]
[326545906,1715100721565,-300.57164172,0.0002517,2]
[326545907,1715100721581,-400.0,0.0002517,2]
[326545908,1715100721600,-300.0,0.0002517,2]
[326545909,1715100721620,-400.0,0.0002517,2]
[326545910,1715100721632,-300.0,0.0002517,2]
[326545911,1715100721644,-5800.0,0.00025171,2]
[326545912,1715100721654,-500.0,0.00025179,2]
[326545913,1715100721695,-5800.0,0.00025179,2]
[326545914,1715100721705,-5800.0,0.00025179,2]
[326545915,1715100721726,-5800.0,0.00025179,2]
[326545916,1715100721737,-500.0,0.00025187,2]
[326545917,1715100721749,-5800.0,0.00025188,2]
[326545918,1715100721761,-5800.0,0.00025188,2]
[326545919,1715100721772,-5800.0,0.00025188,2]
[326545920,1715100721783,-500.0,0.00025196,2]
[326545921,1715100721817,-5800.0,0.00025197,2]
[326545922,1715100721833,-5800.0,0.00025197,2]
[326545923,1715100721848,-5800.0,0.00025197,2]
[326545924,1715100721864,-456.82541101,0.000252,4]
[326545925,1715100721901,-2002.33520098,0.000252,4]
[326545926,1715100721924,-2000.0,0.000252,2]
[326545927,1715100721934,-484.0,0.000252,8]
[326545928,1715100721945,-342.0,0.000252,2]
[326545929,1715100721968,-150.0,0.00025204,2]
[326545930,1715100721979,-460.41551454,0.00025204,2]
[326545931,1715100722002,-500.0,0.00025205,2]
[326545932,1715100722018,-34103.61516134,0.00025205,2]
[326545933,1715100722044,-58000.0,0.00025205,2]
[326545934,1715100722071,-464.32360073,0.00025205,2]
[326545935,1715100722096,-5800.0,0.00025205,2]
[326545936,1715100722124,-500.0,0.00025205,2]
[326545937,1715100722142,-500.0,0.00025205,2]
[326545938,1715100722173,-500.0,0.00025205,2]
[326545939,1715100722184,-981.39,0.00025205,2]
[326545940,1715100722241,-500.0,0.00025205,2]
[326545941,1715100722257,-770.25,0.00025205,2]
[326545942,1715100722281,-5800.0,0.00025205,2]
[326545943,1715100722291,-714.86,0.00025205,2]
[326545944,1715100722301,-1038.53,0.00025205,2]
[326545945,1715100722312,-5800.0,0.00025205,2]
[326545946,1715100722330,-500.0,0.00025205,2]
[326545947,1715100722366,-500.0,0.00025205,2]
[326545948,1715100722380,-500.0,0.00025205,2]
[326545949,1715100722391,-500.0,0.00025205,2]
[326545950,1715100722405,-500.0,0.00025205,2]
[326545951,1715100722417,-500.0,0.00025205,2]
[326545952,1715100722430,-531.69,0.00025205,2]
[326545953,1715100722441,-924.39,0.00025205,2]
[326545954,1715100722467,-500.0,0.00025205,2]
[326545955,1715100722482,-500.0,0.00025205,2]
[326545956,1715100722501,-500.0,0.00025205,2]
[326545957,1715100722512,-500.0,0.00025205,2]
[326545958,1715100722527,-500.0,0.00025205,2]
[326545959,1715100722538,-500.0,0.00025205,2]
[326545960,1715100722550,-623.94,0.00025205,2]
[326545961,1715100722561,-500.0,0.00025205,2]
[326545962,1715100722602,-740.2,0.00025205,2]
[326545963,1715100722612,-649.43,0.00025205,2]
[326545964,1715100722623,-1098.64,0.00025205,2]
[326545965,1715100722634,-500.0,0.00025205,2]
[326545966,1715100722652,-725.44,0.00025205,2]
[326545967,1715100722679,-580.17,0.00025205,2]
[326545968,1715100722690,-500.0,0.00025205,2]
[326545969,1715100722701,-876.37,0.00025205,2]
[326545970,1715100722711,-500.0,0.00025205,2]
[326545971,1715100722721,-547.6,0.00025205,2]
[326545972,1715100722737,-500.0,0.00025205,2]
[326545973,1715100722748,-500.0,0.00025205,2]
[326545974,1715100722762,-858.69,0.00025205,2]
[326545975,1715100722785,-500.0,0.00025205,2]
[326545976,1715100722806,-500.0,0.00025205,2]
[326545977,1715100722817,-500.0,0.00025205,2]
[326545978,1715100722866,-500.93,0.00025205,2]
[326545979,1715100722876,-500.0,0.00025205,2]
[326545980,1715100722887,-500.0,0.00025205,2]
[326545981,1715100722898,-500.0,0.00025205,2]
[326545982,1715100722931,-505.27793205,0.00025205,2]
[326545983,1715100722956,-500.0,0.00025205,2]
[326545984,1715100722967,-993.71,0.00025205,2]
[326545985,1715100722978,-500.0,0.00025205,2]
[326545986,1715100722990,-1112.29,0.00025205,2]
[326545987,1715100723032,-500.0,0.00025205,2]
[326545988,1715100723052,-500.0,0.00025205,2]
[326545989,1715100723067,-608.9,0.00025205,2]
[326545990,1715100723085,-744.3,0.00025205,2]
[326545991,1715100723103,-769.36,0.00025205,2]
[326545992,1715100723123,-1288.3,0.00025205,2]
[326545993,1715100723133,-500.0,0.00025205,2]
[326545994,1715100723148,-1986.0,0.00025205,2]
[326545995,1715100723159,-1221.93,0.00025205,2]
[326545996,1715100723169,-500.0,0.00025205,2]
[326545997,1715100723180,-500.0,0.00025205,2]
[326545998,1715100723196,-684.76,0.00025205,2]
[326545999,1715100723216,-500.0,0.00025205,2]
[326546000,1715100723229,-872.23,0.00025205,2]
[326546001,1715100723247,-500.0,0.00025205,2]
[326546002,1715100723261,-500.0,0.00025205,2]
[326546003,1715100723274,-509.33,0.00025205,2]
[326546004,1715100723294,-1149.17,0.00025205,2]
[326546005,1715100723323,-500.0,0.00025205,2]
[326546006,1715100723334,-500.0,0.00025205,2]
[326546007,1715100723375,-500.0,0.00025205,2]
[326546008,1715100723397,-706.36,0.00025205,2]